[Event "Titled Tuesday Blitz March 28 Early 2023"]
[White "Fedoseev, Vladimir"]
[Black "Rendle, Thomas E"]
[WhiteFideId "24130737"]
[BlackFideId "408760"]
[WhiteElo "2752"]
[BlackElo "2428"]
[Result "1/2-1/2"]
[Round "02"]
[TimeControl "180+2"]
[Date "2023.03.28"]
[WhiteClock "0:00:44"]
[BlackClock "0:00:22"]

1. e4 {[%clk 0:03:00]}  e6 {[%clk 0:02:59]} 2. d4 {[%clk 0:03:00]}  d5 {[%clk 0:03:00]} 3. Nd2 {[%clk 0:03:00]}  a6 {[%clk 0:02:55]} 4. Bd3 {[%clk 0:02:58]}  c5 {[%clk 0:02:54]} 5. Ngf3 {[%clk 0:02:46]}  Nf6 {[%clk 0:02:45]} 6. e5 {[%clk 0:02:33]}  Nfd7 {[%clk 0:02:45]} 7. c3 {[%clk 0:02:33]}  Nc6 {[%clk 0:02:45]} 8. O-O {[%clk 0:02:27]}  g5 {[%clk 0:02:45]} 9. h3 {[%clk 0:02:16]}  h5 {[%clk 0:02:44]} 10. g4 {[%clk 0:02:15]}  hxg4 {[%clk 0:02:45]} 11. hxg4 {[%clk 0:02:15]}  Be7 {[%clk 0:02:39]} 12. Re1 {[%clk 0:02:14]}  Qb6 {[%clk 0:02:29]} 13. dxc5 {[%clk 0:02:10]}  Qc7 {[%clk 0:02:27]} 14. Qe2 {[%clk 0:02:07]}  Nxc5 {[%clk 0:02:04]} 15. Nb3 {[%clk 0:02:06]}  b6 {[%clk 0:01:58]} 16. Nbd4 {[%clk 0:01:42]}  Bb7 {[%clk 0:01:50]} 17. Bc2 {[%clk 0:01:28]}  Nxd4 {[%clk 0:01:44]} 18. cxd4 {[%clk 0:01:28]}  Ne4 {[%clk 0:01:44]} 19. Kg2 {[%clk 0:01:27]}  O-O-O {[%clk 0:01:39]} 20. Be3 {[%clk 0:01:27]}  Kb8 {[%clk 0:01:39]} 21. Rac1 {[%clk 0:01:26]}  Qd7 {[%clk 0:01:39]} 22. Bd3 {[%clk 0:01:22]}  Ka7 {[%clk 0:01:37]} 23. Rh1 {[%clk 0:01:23]}  Rc8 {[%clk 0:01:34]} 24. Rxc8 {[%clk 0:01:17]}  Qxc8 {[%clk 0:01:33]} 25. Rxh8 {[%clk 0:01:17]}  Qxh8 {[%clk 0:01:34]} 26. Qc2 {[%clk 0:01:14]}  Kb8 {[%clk 0:01:26]} 27. Qc1 {[%clk 0:01:09]}  f6 {[%clk 0:01:15]} 28. exf6 {[%clk 0:01:06]}  Bxf6 {[%clk 0:01:16]} 29. Qh1 {[%clk 0:00:54]}  Qc8 {[%clk 0:01:06]} 30. Qh6 {[%clk 0:00:53]}  e5 {[%clk 0:01:02]} 31. Bxe4 {[%clk 0:00:27]}  Qxg4+ {[%clk 0:00:52]} 32. Kf1 {[%clk 0:00:27]}  dxe4 {[%clk 0:00:48]} 33. Qxf6 {[%clk 0:00:23]}  Qxf3 {[%clk 0:00:37]} 34. Qd8+ {[%clk 0:00:23]}  Ka7 {[%clk 0:00:37]} 35. dxe5 {[%clk 0:00:23]}  Qh1+ {[%clk 0:00:28]} 36. Ke2 {[%clk 0:00:23]}  Qh5+ {[%clk 0:00:25]} 37. Kd2 {[%clk 0:00:22]}  Qg6 {[%clk 0:00:25]} 38. Qf6 {[%clk 0:00:19]}  Qxf6 {[%clk 0:00:20]} 39. exf6 {[%clk 0:00:20]}  Bd5 {[%clk 0:00:21]} 40. Kc3 {[%clk 0:00:19]}  Kb7 {[%clk 0:00:15]} 41. Kd4 {[%clk 0:00:20]}  Kc6 {[%clk 0:00:15]} 42. Ke5 {[%clk 0:00:17]}  Bxa2 {[%clk 0:00:14]} 43. Bxg5 {[%clk 0:00:15]}  Bf7 {[%clk 0:00:13]} 44. Be3 {[%clk 0:00:13]}  b5 {[%clk 0:00:11]} 45. b4 {[%clk 0:00:13]}  Kd7 {[%clk 0:00:10]} 46. Bb6 {[%clk 0:00:14]}  Bc4 {[%clk 0:00:10]} 47. Kf5 {[%clk 0:00:12]}  Bf7 {[%clk 0:00:10]} 48. Ba5 {[%clk 0:00:11]}  Kd6 {[%clk 0:00:08]} 49. Kxe4 {[%clk 0:00:10]}  Ke6 {[%clk 0:00:08]} 50. Bd8 {[%clk 0:00:11]}  Bg6+ {[%clk 0:00:07]} 51. Kd4 {[%clk 0:00:11]}  Kf7 {[%clk 0:00:07]} 52. Kc5 {[%clk 0:00:11]}  Bd3 {[%clk 0:00:07]} 53. Kb6 {[%clk 0:00:11]}  Bc4 {[%clk 0:00:08]} 54. Kxa6 {[%clk 0:00:12]}  Be2 {[%clk 0:00:08]} 55. Kb6 {[%clk 0:00:13]}  Bc4 {[%clk 0:00:08]} 56. Kc5 {[%clk 0:00:14]}  Bd3 {[%clk 0:00:09]} 57. Kd4 {[%clk 0:00:14]}  Bf1 {[%clk 0:00:09]} 58. f4 {[%clk 0:00:14]}  Bc4 {[%clk 0:00:10]} 59. Ke5 {[%clk 0:00:14]}  Bf1 {[%clk 0:00:11]} 60. Be7 {[%clk 0:00:15]}  Bc4 {[%clk 0:00:11]} 61. Bc5 {[%clk 0:00:16]}  Bf1 {[%clk 0:00:12]} 62. Bf2 {[%clk 0:00:16]}  Bc4 {[%clk 0:00:12]} 63. Bh4 {[%clk 0:00:17]}  Bf1 {[%clk 0:00:13]} 64. Kd4 {[%clk 0:00:17]}  Bc4 {[%clk 0:00:13]} 65. Ke3 {[%clk 0:00:18]}  Bf1 {[%clk 0:00:14]} 66. Kf2 {[%clk 0:00:18]}  Bc4 {[%clk 0:00:14]} 67. Kf3 {[%clk 0:00:19]}  Bd3 {[%clk 0:00:14]} 68. Kf2 {[%clk 0:00:20]}  Bc4 {[%clk 0:00:15]} 69. Ke1 {[%clk 0:00:20]}  Bd3 {[%clk 0:00:15]} 70. Kd2 {[%clk 0:00:21]}  Bc4 {[%clk 0:00:15]} 71. Kc3 {[%clk 0:00:22]}  Ke6 {[%clk 0:00:15]} 72. Kd4 {[%clk 0:00:21]}  Kf7 {[%clk 0:00:16]} 73. Ke5 {[%clk 0:00:19]}  Bf1 {[%clk 0:00:16]} 74. f5 {[%clk 0:00:19]}  Bc4 {[%clk 0:00:16]} 75. Bf2 {[%clk 0:00:20]}  Bf1 {[%clk 0:00:16]} 76. Bc5 {[%clk 0:00:21]}  Bc4 {[%clk 0:00:17]} 77. Be7 {[%clk 0:00:22]}  Bf1 {[%clk 0:00:17]} 78. Kf4 {[%clk 0:00:23]}  Bc4 {[%clk 0:00:17]} 79. Kg5 {[%clk 0:00:24]}  Bd3 {[%clk 0:00:18]} 80. Bc5 {[%clk 0:00:25]}  Bc4 {[%clk 0:00:18]} 81. Bd4 {[%clk 0:00:26]}  Bd3 {[%clk 0:00:19]} 82. Be3 {[%clk 0:00:27]}  Bc4 {[%clk 0:00:19]} 83. Kf4 {[%clk 0:00:27]}  Bd3 {[%clk 0:00:20]} 84. Bd4 {[%clk 0:00:27]}  Bf1 {[%clk 0:00:20]} 85. Ke4 {[%clk 0:00:28]}  Bc4 {[%clk 0:00:20]} 86. Be5 {[%clk 0:00:29]}  Bf1 {[%clk 0:00:20]} 87. Ke3 {[%clk 0:00:30]}  Bc4 {[%clk 0:00:20]} 88. Kd4 {[%clk 0:00:31]}  Bf1 {[%clk 0:00:20]} 89. Kc3 {[%clk 0:00:32]}  Bc4 {[%clk 0:00:20]} 90. Kd2 {[%clk 0:00:32]}  Bf1 {[%clk 0:00:20]} 91. Kc2 {[%clk 0:00:33]}  Bc4 {[%clk 0:00:21]} 92. Kd1 {[%clk 0:00:34]}  Bf1 {[%clk 0:00:21]} 93. Kd2 {[%clk 0:00:35]}  Bc4 {[%clk 0:00:21]} 94. Ke1 {[%clk 0:00:36]}  Bd3 {[%clk 0:00:21]} 95. Kd2 {[%clk 0:00:37]}  Bc4 {[%clk 0:00:22]} 96. Kc3 {[%clk 0:00:38]}  Bf1 {[%clk 0:00:22]} 97. Kd4 {[%clk 0:00:38]}  Bc4 {[%clk 0:00:22]} 98. Ke4 {[%clk 0:00:39]}  Bf1 {[%clk 0:00:22]} 99. Kf4 {[%clk 0:00:40]}  Bc4 {[%clk 0:00:22]} 100. Bd4 {[%clk 0:00:41]}  Bd3 {[%clk 0:00:22]} 101. Ke5 {[%clk 0:00:42]}  Bc4 {[%clk 0:00:23]} 102. Be3 {[%clk 0:00:43]}  Bf1 {[%clk 0:00:22]} 103. Bg5 {[%clk 0:00:44]} 1/2-1/2


[Site "https://www.chess.com"]

[Event "Titled Tuesday Blitz March 28 Early 2023"]
[White "Subelj, Jan"]
[Black "Bortnyk, Olexandr"]
[WhiteFideId "14618583"]
[BlackFideId "14120828"]
[WhiteElo "2474"]
[BlackElo "2734"]
[Result "0-1"]
[Round "02"]
[TimeControl "180+2"]
[Date "2023.03.28"]
[WhiteClock "0:00:02"]
[BlackClock "0:01:01"]

1. e4 {[%clk 0:03:00]}  Nf6 {[%clk 0:02:55]} 2. e5 {[%clk 0:03:00]}  Nd5 {[%clk 0:02:56]} 3. d4 {[%clk 0:03:00]}  d6 {[%clk 0:02:56]} 4. Nf3 {[%clk 0:03:00]}  dxe5 {[%clk 0:02:56]} 5. Nxe5 {[%clk 0:03:01]}  c6 {[%clk 0:02:56]} 6. Be2 {[%clk 0:02:58]}  Bf5 {[%clk 0:02:55]} 7. O-O {[%clk 0:02:57]}  Nd7 {[%clk 0:02:55]} 8. Nf3 {[%clk 0:02:52]}  e6 {[%clk 0:02:55]} 9. c4 {[%clk 0:02:33]}  N5f6 {[%clk 0:02:55]} 10. Nc3 {[%clk 0:02:32]}  Bd6 {[%clk 0:02:54]} 11. Nh4 {[%clk 0:02:24]}  Bg6 {[%clk 0:02:54]} 12. Nxg6 {[%clk 0:02:22]}  hxg6 {[%clk 0:02:55]} 13. g3 {[%clk 0:02:23]}  O-O {[%clk 0:02:54]} 14. Bf3 {[%clk 0:02:20]}  e5 {[%clk 0:02:54]} 15. Be3 {[%clk 0:02:16]}  exd4 {[%clk 0:02:53]} 16. Bxd4 {[%clk 0:02:14]}  Be5 {[%clk 0:02:53]} 17. Re1 {[%clk 0:02:12]}  Qa5 {[%clk 0:02:40]} 18. Qd2 {[%clk 0:01:18]}  Rad8 {[%clk 0:02:37]} 19. Rad1 {[%clk 0:01:16]}  Bxd4 {[%clk 0:02:30]} 20. Qxd4 {[%clk 0:01:17]}  Nc5 {[%clk 0:02:24]} 21. Qe3 {[%clk 0:01:12]}  Rxd1 {[%clk 0:02:01]} 22. Rxd1 {[%clk 0:01:09]}  Re8 {[%clk 0:02:01]} 23. Qd4 {[%clk 0:01:02]}  Ne6 {[%clk 0:01:54]} 24. Qd2 {[%clk 0:00:59]}  Qf5 {[%clk 0:01:47]} 25. Bg2 {[%clk 0:00:55]}  Rd8 {[%clk 0:01:42]} 26. Qe1 {[%clk 0:00:45]}  Nd4 {[%clk 0:01:41]} 27. Qe3 {[%clk 0:00:34]}  Ng4 {[%clk 0:01:32]} 28. Rxd4 {[%clk 0:00:30]}  Nxe3 {[%clk 0:01:26]} 29. Rxd8+ {[%clk 0:00:29]}  Kh7 {[%clk 0:01:27]} 30. fxe3 {[%clk 0:00:29]}  Qc2 {[%clk 0:01:27]} 31. Nd1 {[%clk 0:00:19]}  Qxc4 {[%clk 0:01:27]} 32. a3 {[%clk 0:00:18]}  a5 {[%clk 0:01:26]} 33. Rd4 {[%clk 0:00:18]}  Qc2 {[%clk 0:01:25]} 34. Bf1 {[%clk 0:00:18]}  b5 {[%clk 0:01:24]} 35. Rd7 {[%clk 0:00:13]}  b4 {[%clk 0:01:23]} 36. axb4 {[%clk 0:00:12]}  axb4 {[%clk 0:01:24]} 37. Bg2 {[%clk 0:00:05]}  f6 {[%clk 0:01:23]} 38. Bf3 {[%clk 0:00:05]}  c5 {[%clk 0:01:23]} 39. Rd5 {[%clk 0:00:05]}  c4 {[%clk 0:01:20]} 40. h4 {[%clk 0:00:05]}  b3 {[%clk 0:01:18]} 41. h5 {[%clk 0:00:04]}  c3 {[%clk 0:01:00]} 42. hxg6+ {[%clk 0:00:04]}  Kh6 {[%clk 0:01:01]} 43. Rd2 {[%clk 0:00:02]}  cxd2 {[%clk 0:01:01]} 0-1


[Site "https://www.chess.com"]

[Event "Titled Tuesday Blitz March 28 Early 2023"]
[White "Giri, Anish"]
[Black "Darini, Pouria"]
[WhiteFideId "24116068"]
[BlackFideId "12502200"]
[WhiteElo "2807"]
[BlackElo "2482"]
[Result "1-0"]
[Round "02"]
[TimeControl "180+2"]
[Date "2023.03.28"]
[WhiteClock "0:01:33"]
[BlackClock "0:00:01"]

1. e4 {[%clk 0:03:00]}  c5 {[%clk 0:02:59]} 2. Nf3 {[%clk 0:03:01]}  Nc6 {[%clk 0:03:00]} 3. Bb5 {[%clk 0:03:00]}  e6 {[%clk 0:03:00]} 4. O-O {[%clk 0:03:00]}  Nge7 {[%clk 0:03:00]} 5. Re1 {[%clk 0:03:01]}  b6 {[%clk 0:03:00]} 6. Nc3 {[%clk 0:03:00]}  Bb7 {[%clk 0:02:58]} 7. d4 {[%clk 0:03:00]}  cxd4 {[%clk 0:02:57]} 8. Nxd4 {[%clk 0:03:01]}  Nxd4 {[%clk 0:02:50]} 9. Qxd4 {[%clk 0:03:01]}  a6 {[%clk 0:02:40]} 10. Bf1 {[%clk 0:02:57]}  Nc6 {[%clk 0:02:40]} 11. Qd1 {[%clk 0:02:58]}  Bc5 {[%clk 0:02:30]} 12. Na4 {[%clk 0:02:55]}  Bd4 {[%clk 0:01:34]} 13. c3 {[%clk 0:02:45]}  Be5 {[%clk 0:01:35]} 14. Be3 {[%clk 0:02:44]}  Bc7 {[%clk 0:01:35]} 15. c4 {[%clk 0:02:39]}  O-O {[%clk 0:01:18]} 16. c5 {[%clk 0:02:38]}  bxc5 {[%clk 0:00:33]} 17. Nxc5 {[%clk 0:02:38]}  Bc8 {[%clk 0:00:34]} 18. Rc1 {[%clk 0:02:37]}  Qe7 {[%clk 0:00:20]} 19. a3 {[%clk 0:02:29]}  Rd8 {[%clk 0:00:18]} 20. b4 {[%clk 0:02:26]}  d5 {[%clk 0:00:13]} 21. exd5 {[%clk 0:02:04]}  Rxd5 {[%clk 0:00:14]} 22. Qe2 {[%clk 0:02:02]}  Nd4 {[%clk 0:00:12]} 23. Bxd4 {[%clk 0:01:53]}  Rxd4 {[%clk 0:00:12]} 24. Qf3 {[%clk 0:01:53]}  Ra7 {[%clk 0:00:09]} 25. g3 {[%clk 0:01:48]}  g6 {[%clk 0:00:07]} 26. Qc3 {[%clk 0:01:44]}  Rd8 {[%clk 0:00:06]} 27. Ne4 {[%clk 0:01:40]}  e5 {[%clk 0:00:04]} 28. Qe3 {[%clk 0:01:37]}  Ra8 {[%clk 0:00:02]} 29. Bc4 {[%clk 0:01:37]}  Be6 {[%clk 0:00:02]} 30. Bxe6 {[%clk 0:01:37]}  fxe6 {[%clk 0:00:03]} 31. Rc6 {[%clk 0:01:36]}  Rd7 {[%clk 0:00:03]} 32. Rec1 {[%clk 0:01:35]}  Rad8 {[%clk 0:00:03]} 33. Qb3 {[%clk 0:01:34]}  Kf7 {[%clk 0:00:01]} 34. Rxe6 {[%clk 0:01:33]} 1-0


[Site "https://www.chess.com"]

[Event "Titled Tuesday Blitz March 28 Early 2023"]
[White "Svane, Rasmus"]
[Black "Jessel, Stephen"]
[WhiteFideId "4657101"]
[BlackFideId "628859"]
[WhiteElo "2597"]
[BlackElo "2268"]
[Result "0-1"]
[Round "02"]
[TimeControl "180+2"]
[Date "2023.03.28"]
[WhiteClock "0:00:07"]
[BlackClock "0:00:07"]

1. Nf3 {[%clk 0:03:00]}  b6 {[%clk 0:02:59]} 2. g3 {[%clk 0:02:59]}  Bb7 {[%clk 0:02:59]} 3. Bg2 {[%clk 0:02:59]}  g6 {[%clk 0:02:59]} 4. O-O {[%clk 0:02:59]}  Bg7 {[%clk 0:02:59]} 5. d4 {[%clk 0:02:59]}  f5 {[%clk 0:02:57]} 6. c4 {[%clk 0:02:58]}  Nf6 {[%clk 0:02:57]} 7. Nc3 {[%clk 0:02:59]}  O-O {[%clk 0:02:57]} 8. d5 {[%clk 0:02:56]}  c6 {[%clk 0:02:56]} 9. Nd4 {[%clk 0:02:51]}  Qc8 {[%clk 0:02:49]} 10. Bf4 {[%clk 0:02:48]}  Re8 {[%clk 0:02:47]} 11. Rc1 {[%clk 0:02:47]}  e5 {[%clk 0:02:46]} 12. dxe6 {[%clk 0:02:48]}  dxe6 {[%clk 0:02:47]} 13. Nf3 {[%clk 0:02:43]}  Nh5 {[%clk 0:02:38]} 14. Be5 {[%clk 0:02:43]}  Bh6 {[%clk 0:02:36]} 15. e3 {[%clk 0:02:37]}  Nd7 {[%clk 0:02:36]} 16. Ne2 {[%clk 0:02:20]}  c5 {[%clk 0:02:34]} 17. Bc3 {[%clk 0:02:21]}  e5 {[%clk 0:02:30]} 18. Qc2 {[%clk 0:02:06]}  Be4 {[%clk 0:02:27]} 19. Qb3 {[%clk 0:02:04]}  Qb7 {[%clk 0:02:21]} 20. Ne1 {[%clk 0:02:02]}  Bxg2 {[%clk 0:02:21]} 21. Nxg2 {[%clk 0:02:03]}  Ndf6 {[%clk 0:02:14]} 22. Rcd1 {[%clk 0:01:56]}  Ne4 {[%clk 0:02:14]} 23. Be1 {[%clk 0:01:51]}  Ng5 {[%clk 0:02:13]} 24. Rd5 {[%clk 0:01:46]}  Nf6 {[%clk 0:02:12]} 25. Nc3 {[%clk 0:01:35]}  Rad8 {[%clk 0:02:02]} 26. f3 {[%clk 0:01:09]}  e4 {[%clk 0:01:53]} 27. fxe4 {[%clk 0:01:09]}  Ngxe4 {[%clk 0:01:44]} 28. Nxe4 {[%clk 0:01:08]}  Nxe4 {[%clk 0:01:33]} 29. Bf2 {[%clk 0:00:50]}  Nf6 {[%clk 0:01:32]} 30. Rxd8 {[%clk 0:00:49]}  Rxd8 {[%clk 0:01:32]} 31. Rd1 {[%clk 0:00:50]}  Rd7 {[%clk 0:01:28]} 32. Nf4 {[%clk 0:00:46]}  Qf3 {[%clk 0:01:27]} 33. Rxd7 {[%clk 0:00:45]}  Nxd7 {[%clk 0:01:28]} 34. Qd3 {[%clk 0:00:44]}  Qc6 {[%clk 0:01:08]} 35. Nd5 {[%clk 0:00:42]}  Kf7 {[%clk 0:01:05]} 36. e4 {[%clk 0:00:42]}  Ne5 {[%clk 0:01:05]} 37. Qe2 {[%clk 0:00:39]}  Qe6 {[%clk 0:00:54]} 38. exf5 {[%clk 0:00:38]}  Qxf5 {[%clk 0:00:54]} 39. Kg2 {[%clk 0:00:38]}  Bf8 {[%clk 0:00:45]} 40. Be1 {[%clk 0:00:38]}  Nd3 {[%clk 0:00:45]} 41. Bc3 {[%clk 0:00:37]}  Bd6 {[%clk 0:00:41]} 42. Qf3 {[%clk 0:00:27]}  Nc1 {[%clk 0:00:32]} 43. a3 {[%clk 0:00:18]}  Qxf3+ {[%clk 0:00:26]} 44. Kxf3 {[%clk 0:00:19]}  Nb3 {[%clk 0:00:26]} 45. Ke3 {[%clk 0:00:18]}  Ke6 {[%clk 0:00:26]} 46. Kd3 {[%clk 0:00:18]}  Be5 {[%clk 0:00:26]} 47. Kc2 {[%clk 0:00:16]}  Bxc3 {[%clk 0:00:22]} 48. Kxb3 {[%clk 0:00:13]}  Bd4 {[%clk 0:00:21]} 49. Nc7+ {[%clk 0:00:12]}  Ke5 {[%clk 0:00:21]} 50. Nb5 {[%clk 0:00:10]}  a5 {[%clk 0:00:15]} 51. Nc7 {[%clk 0:00:06]}  Bg1 {[%clk 0:00:15]} 52. h3 {[%clk 0:00:05]}  Bh2 {[%clk 0:00:14]} 53. g4 {[%clk 0:00:06]}  Kf4 {[%clk 0:00:13]} 54. Nd5+ {[%clk 0:00:04]}  Kg3 {[%clk 0:00:13]} 55. Nxb6 {[%clk 0:00:05]}  Kxh3 {[%clk 0:00:14]} 56. Nd7 {[%clk 0:00:04]}  Bd6 {[%clk 0:00:14]} 57. Nf6 {[%clk 0:00:04]}  h6 {[%clk 0:00:11]} 58. Ka4 {[%clk 0:00:05]}  Be5 {[%clk 0:00:10]} 59. Ne4 {[%clk 0:00:02]}  Bxb2 {[%clk 0:00:10]} 60. Kxa5 {[%clk 0:00:02]}  Bxa3 {[%clk 0:00:10]} 61. Nf6 {[%clk 0:00:02]}  Kh4 {[%clk 0:00:10]} 62. Kb5 {[%clk 0:00:02]}  Kg5 {[%clk 0:00:10]} 63. Ng8 {[%clk 0:00:01]}  Bb4 {[%clk 0:00:09]} 64. Ne7 {[%clk 0:00:01]}  Kxg4 {[%clk 0:00:09]} 65. Nxg6 {[%clk 0:00:02]}  h5 {[%clk 0:00:09]} 66. Ne5+ {[%clk 0:00:02]}  Kg3 {[%clk 0:00:10]} 67. Nd3 {[%clk 0:00:03]}  h4 {[%clk 0:00:07]} 68. Nc1 {[%clk 0:00:01]}  h3 {[%clk 0:00:07]} 69. Ne2+ {[%clk 0:00:02]}  Kf2 {[%clk 0:00:06]} 70. Nf4 {[%clk 0:00:02]}  h2 {[%clk 0:00:07]} 71. Nd3+ {[%clk 0:00:02]}  Kg1 {[%clk 0:00:06]} 72. Ne5 {[%clk 0:00:02]}  h1=Q {[%clk 0:00:06]} 73. Nc6 {[%clk 0:00:03]}  Qe4 {[%clk 0:00:06]} 74. Na5 {[%clk 0:00:03]}  Qa8 {[%clk 0:00:06]} 75. Nc6 {[%clk 0:00:02]}  Qb7+ {[%clk 0:00:06]} 76. Ka4 {[%clk 0:00:02]}  Qxc6+ {[%clk 0:00:06]} 77. Kb3 {[%clk 0:00:03]}  Qa6 {[%clk 0:00:06]} 78. Kb2 {[%clk 0:00:03]}  Qa3+ {[%clk 0:00:06]} 79. Kc2 {[%clk 0:00:04]}  Qc3+ {[%clk 0:00:06]} 80. Kb1 {[%clk 0:00:05]}  Qd2 {[%clk 0:00:06]} 81. Ka1 {[%clk 0:00:06]}  Bc3+ {[%clk 0:00:06]} 82. Kb1 {[%clk 0:00:07]}  Qb2# {[%clk 0:00:07]} 0-1


[Site "https://www.chess.com"]

[Event "Titled Tuesday Blitz March 28 Early 2023"]
[White "Le, Tuan Minh"]
[Black "Cuenca Jimenez, Jose Fernando"]
[WhiteFideId "12401153"]
[BlackFideId "2255570"]
[WhiteElo "2558"]
[BlackElo "2429"]
[Result "1-0"]
[Round "02"]
[TimeControl "180+2"]
[Date "2023.03.28"]
[WhiteClock "0:00:13"]
[BlackClock "0:00:01"]

1. d4 {[%clk 0:03:00]}  Nf6 {[%clk 0:02:57]} 2. Nf3 {[%clk 0:03:01]}  d5 {[%clk 0:02:56]} 3. Bf4 {[%clk 0:03:01]}  e6 {[%clk 0:02:55]} 4. e3 {[%clk 0:03:01]}  c5 {[%clk 0:02:55]} 5. c3 {[%clk 0:03:01]}  Nc6 {[%clk 0:02:56]} 6. Nbd2 {[%clk 0:03:02]}  Bd6 {[%clk 0:02:56]} 7. Bg3 {[%clk 0:03:02]}  O-O {[%clk 0:02:56]} 8. Bb5 {[%clk 0:03:03]}  Be7 {[%clk 0:02:55]} 9. Bd3 {[%clk 0:03:02]}  b6 {[%clk 0:02:49]} 10. Ne5 {[%clk 0:02:50]}  Bb7 {[%clk 0:02:46]} 11. O-O {[%clk 0:02:44]}  Bd6 {[%clk 0:02:40]} 12. f4 {[%clk 0:02:43]}  Ne7 {[%clk 0:02:40]} 13. Qb1 {[%clk 0:02:42]}  g6 {[%clk 0:02:27]} 14. Bh4 {[%clk 0:02:28]}  Ne8 {[%clk 0:01:33]} 15. Bxe7 {[%clk 0:01:46]}  Qxe7 {[%clk 0:01:31]} 16. Qe1 {[%clk 0:01:45]}  Nf6 {[%clk 0:01:08]} 17. Qg3 {[%clk 0:01:17]}  Ne4 {[%clk 0:01:02]} 18. Bxe4 {[%clk 0:01:17]}  dxe4 {[%clk 0:01:02]} 19. Qh3 {[%clk 0:01:11]}  f6 {[%clk 0:01:01]} 20. Ng4 {[%clk 0:01:09]}  h5 {[%clk 0:00:53]} 21. Nf2 {[%clk 0:01:08]}  f5 {[%clk 0:00:54]} 22. Qg3 {[%clk 0:01:02]}  Kf7 {[%clk 0:00:42]} 23. Nh3 {[%clk 0:01:02]}  Ba6 {[%clk 0:00:39]} 24. Rfe1 {[%clk 0:01:01]}  Kg7 {[%clk 0:00:39]} 25. Rad1 {[%clk 0:00:51]}  Bd3 {[%clk 0:00:38]} 26. Ng5 {[%clk 0:00:49]}  cxd4 {[%clk 0:00:37]} 27. exd4 {[%clk 0:00:48]}  b5 {[%clk 0:00:35]} 28. Nf1 {[%clk 0:00:48]}  Bxf1 {[%clk 0:00:31]} 29. Rxf1 {[%clk 0:00:46]}  Rfd8 {[%clk 0:00:28]} 30. Qe3 {[%clk 0:00:44]}  Bc7 {[%clk 0:00:26]} 31. g3 {[%clk 0:00:37]}  a6 {[%clk 0:00:25]} 32. Kg2 {[%clk 0:00:37]}  Qd7 {[%clk 0:00:24]} 33. Rd2 {[%clk 0:00:37]}  Qd5 {[%clk 0:00:21]} 34. b3 {[%clk 0:00:37]}  Rac8 {[%clk 0:00:21]} 35. Rc1 {[%clk 0:00:37]}  Ba5 {[%clk 0:00:21]} 36. Rdc2 {[%clk 0:00:36]}  Rd6 {[%clk 0:00:18]} 37. c4 {[%clk 0:00:36]}  bxc4 {[%clk 0:00:16]} 38. bxc4 {[%clk 0:00:27]}  Qc6 {[%clk 0:00:14]} 39. Nxe6+ {[%clk 0:00:18]}  Rxe6 {[%clk 0:00:13]} 40. d5 {[%clk 0:00:19]}  Bb6 {[%clk 0:00:07]} 41. Qc3+ {[%clk 0:00:14]}  Kh7 {[%clk 0:00:01]} 42. dxc6 {[%clk 0:00:14]}  Rexc6 {[%clk 0:00:02]} 43. c5 {[%clk 0:00:13]}  Rxc5 {[%clk 0:00:01]} 44. Qxc5 {[%clk 0:00:13]} 1-0


[Site "https://www.chess.com"]

[Event "Titled Tuesday Blitz March 28 Early 2023"]
[White "Papasimakopoulos, Alexandros"]
[Black "Vidit, Santosh Gujrathi"]
[WhiteFideId "4244125"]
[BlackFideId "5029465"]
[WhiteElo "2359"]
[BlackElo "2651"]
[Result "1-0"]
[Round "02"]
[TimeControl "180+2"]
[Date "2023.03.28"]
[WhiteClock "0:00:06"]
[BlackClock "0:00:02"]

1. d4 {[%clk 0:02:51]}  Nf6 {[%clk 0:02:59]} 2. c4 {[%clk 0:02:52]}  e6 {[%clk 0:02:58]} 3. Nc3 {[%clk 0:02:52]}  Bb4 {[%clk 0:02:57]} 4. Qc2 {[%clk 0:02:52]}  d5 {[%clk 0:02:56]} 5. cxd5 {[%clk 0:02:51]}  exd5 {[%clk 0:02:56]} 6. Bg5 {[%clk 0:02:51]}  h6 {[%clk 0:02:55]} 7. Bh4 {[%clk 0:02:52]}  g5 {[%clk 0:02:49]} 8. Bg3 {[%clk 0:02:51]}  Nc6 {[%clk 0:02:50]} 9. e3 {[%clk 0:02:51]}  h5 {[%clk 0:02:49]} 10. Bb5 {[%clk 0:02:42]}  h4 {[%clk 0:02:43]} 11. Be5 {[%clk 0:02:42]}  O-O {[%clk 0:02:41]} 12. Bxc6 {[%clk 0:02:41]}  bxc6 {[%clk 0:02:41]} 13. h3 {[%clk 0:02:41]}  Re8 {[%clk 0:02:35]} 14. Ne2 {[%clk 0:02:38]}  Ne4 {[%clk 0:02:27]} 15. O-O {[%clk 0:02:28]}  Nd6 {[%clk 0:02:07]} 16. Qa4 {[%clk 0:02:17]}  a5 {[%clk 0:01:50]} 17. a3 {[%clk 0:02:07]}  Bxc3 {[%clk 0:01:49]} 18. Nxc3 {[%clk 0:02:07]}  Bd7 {[%clk 0:01:43]} 19. Qc2 {[%clk 0:02:05]}  Nc4 {[%clk 0:01:34]} 20. Bh2 {[%clk 0:02:04]}  Qf6 {[%clk 0:01:17]} 21. b3 {[%clk 0:01:58]}  Nd6 {[%clk 0:01:17]} 22. Be5 {[%clk 0:01:55]}  Qh6 {[%clk 0:01:17]} 23. Nxd5 {[%clk 0:01:40]}  cxd5 {[%clk 0:01:13]} 24. Qxc7 {[%clk 0:01:39]}  Bb5 {[%clk 0:01:13]} 25. Qxd6 {[%clk 0:01:29]}  Qxd6 {[%clk 0:01:12]} 26. Bxd6 {[%clk 0:01:29]}  Bxf1 {[%clk 0:01:12]} 27. Kxf1 {[%clk 0:01:29]}  f6 {[%clk 0:01:01]} 28. Ke2 {[%clk 0:01:27]}  Kf7 {[%clk 0:00:59]} 29. Kd3 {[%clk 0:01:26]}  Ke6 {[%clk 0:00:59]} 30. Bc5 {[%clk 0:01:25]}  Reb8 {[%clk 0:00:57]} 31. Rb1 {[%clk 0:01:26]}  f5 {[%clk 0:00:51]} 32. f3 {[%clk 0:01:22]}  Rb7 {[%clk 0:00:48]} 33. Rb2 {[%clk 0:00:55]}  g4 {[%clk 0:00:39]} 34. fxg4 {[%clk 0:00:41]}  fxg4 {[%clk 0:00:40]} 35. hxg4 {[%clk 0:00:42]}  Rg7 {[%clk 0:00:40]} 36. e4 {[%clk 0:00:18]}  Rxg4 {[%clk 0:00:31]} 37. exd5+ {[%clk 0:00:18]}  Kxd5 {[%clk 0:00:32]} 38. Re2 {[%clk 0:00:18]}  Rg3+ {[%clk 0:00:26]} 39. Kc2 {[%clk 0:00:19]}  Rag8 {[%clk 0:00:26]} 40. Re5+ {[%clk 0:00:19]}  Kc6 {[%clk 0:00:26]} 41. Re6+ {[%clk 0:00:19]}  Kd7 {[%clk 0:00:24]} 42. Re7+ {[%clk 0:00:19]}  Kc8 {[%clk 0:00:21]} 43. Rh7 {[%clk 0:00:19]}  R8g4 {[%clk 0:00:20]} 44. b4 {[%clk 0:00:18]}  a4 {[%clk 0:00:19]} 45. b5 {[%clk 0:00:17]}  Rxg2+ {[%clk 0:00:19]} 46. Kc3 {[%clk 0:00:17]}  R2g3+ {[%clk 0:00:11]} 47. Kc4 {[%clk 0:00:18]}  h3 {[%clk 0:00:12]} 48. Bd6 {[%clk 0:00:16]}  Rb3 {[%clk 0:00:08]} 49. Bb4 {[%clk 0:00:11]}  Rbg3 {[%clk 0:00:04]} 50. Bd6 {[%clk 0:00:10]}  Rb3 {[%clk 0:00:02]} 51. Bb4 {[%clk 0:00:07]}  Rg2 {[%clk 0:00:01]} 52. b6 {[%clk 0:00:06]}  h2 {[%clk 0:00:02]} 53. b7+ {[%clk 0:00:06]} 1-0


[Site "https://www.chess.com"]